bitfinex/quotes_SOLUSD_20230401
["timestamp","ask_amount","ask_price","bid_price","bid_amount"]
[1680371633569,17.0,20.896,20.883,10.0]
[1680371633759,17.0,20.896,20.884,20.0]
[1680371636681,10.0,20.897,20.885,10.0]
[1680371636882,17.0,20.896,20.885,10.0]
[1680371639192,17.0,20.896,20.884,20.0]
[1680371639376,10.0,20.895,20.882,20.0]
[1680371639571,17.0,20.894,20.882,20.0]
[1680371640183,17.0,20.894,20.883,10.0]
[1680371640389,17.0,20.894,20.885,10.0]
[1680371640683,10.0,20.897,20.885,10.0]
[1680371640886,17.0,20.896,20.885,10.0]
[1680371642988,10.0,20.897,20.885,10.0]
[1680371643190,17.0,20.896,20.885,10.0]
[1680371644281,17.0,20.896,20.884,20.0]
[1680371644489,17.0,20.896,20.882,20.0]
[1680371644688,17.0,20.896,20.883,10.0]
[1680371644888,17.0,20.896,20.884,20.0]
[1680371645078,10.0,20.895,20.884,20.0]
[1680371646592,17.0,20.896,20.884,20.0]
[1680371647584,17.0,20.896,20.885,10.0]
[1680371653192,17.0,20.896,20.884,20.0]
[1680371653497,113.7832,20.898,20.884,20.0]
[1680371653688,113.7832,20.898,20.885,17.0]
[1680371653884,113.7832,20.898,20.886,10.0]
[1680371654895,117.4322,20.9,20.887,19.15]
[1680371655104,117.4322,20.9,20.888,17.0]
[1680371655307,117.4322,20.9,20.889,10.0]
[1680371655508,117.4322,20.9,20.89,17.0]
[1680371655809,29.149,20.909,20.891,19.146]
[1680371655985,29.149,20.909,20.892,47.0]
[1680371656588,29.149,20.909,20.893,10.0]
[1680371656802,29.149,20.909,20.894,37.0]
[1680371656999,29.149,20.909,20.895,10.0]
[1680371657800,19.149,20.909,20.895,10.0]
[1680371660783,19.149,20.909,20.895,29.143]
[1680371660988,19.149,20.909,20.896,17.0]
[1680371661591,19.149,20.909,20.897,10.0]
[1680371661792,19.149,20.909,20.898,17.0]
[1680371661992,19.149,20.909,20.899,10.0]
[1680371664604,19.149,20.909,20.896,10.0]
[1680371668215,10.0,20.91,20.896,10.0]
[1680371669006,7.1871717,20.917,20.896,10.0]
[1680371669205,7.1871717,20.917,20.898,10.0]
[1680371672718,10.0,20.91,20.898,10.0]
[1680371676217,10.0,20.91,20.895,10.0]
[1680371676412,17.0,20.909,20.895,10.0]
[1680371676811,10.0,20.908,20.895,10.0]
[1680371678824,17.0,20.909,20.895,10.0]
[1680371679721,10.0,20.91,20.895,10.0]
[1680371679921,10.0,20.913,20.895,10.0]
[1680371680123,10.0,20.913,20.897,10.0]
[1680371682726,19.135961,20.914,20.897,10.0]
[1680371683041,19.135961,20.914,20.898,17.0]
[1680371683225,19.135961,20.914,20.899,10.0]
[1680371687815,19.135961,20.914,20.9,17.0]
[1680371688019,10.0,20.916,20.901,10.0]
[1680371691439,10.0,20.916,20.9,17.0]
[1680371691626,10.0,20.916,20.899,10.0]
[1680371695943,118.1004,20.911,20.899,10.0]
[1680371697935,118.1004,20.911,20.897,10.0]
[1680371698137,10.0,20.91,20.897,10.0]
[1680371699545,118.1004,20.911,20.897,10.0]
[1680371703252,118.1004,20.911,20.895,10.0]
[1680371703442,10.0,20.909,20.895,10.0]
[1680371704450,10.0,20.907,20.895,10.0]
[1680371710747,10.0,20.909,20.895,10.0]
[1680371710949,125.7317,20.91,20.897,10.0]
[1680371711843,10.0,20.909,20.897,10.0]
[1680371714348,10.0,20.909,20.896,17.0]
[1680371715254,10.0,20.909,20.895,10.0]
[1680371720151,10.0,20.909,20.894,20.0]
[1680371720358,10.0,20.909,20.892,14.41783577]
[1680371720359,17.0,20.908,20.893,20.0]
[1680371720853,10.0,20.907,20.893,20.0]
[1680371721055,17.0,20.906,20.893,20.0]
[1680371721250,10.0,20.905,20.893,20.0]
[1680371721559,17.0,20.904,20.893,20.0]
[1680371721764,10.0,20.903,20.893,20.0]
[1680371721946,17.0,20.904,20.893,20.0]
[1680371722147,10.0,20.905,20.894,10.0]
[1680371722357,10.0,20.907,20.894,10.0]
[1680371722561,17.0,20.906,20.894,10.0]
[1680371732367,17.0,20.906,20.893,20.0]
[1680371736570,17.0,20.906,20.894,10.0]
[1680371737462,17.0,20.906,20.893,20.0]
[1680371737658,10.0,20.905,20.893,20.0]
[1680371737858,17.0,20.904,20.893,20.0]
[1680371752180,17.0,20.904,20.884,209.99514274]
[1680371752379,17.0,20.904,20.884,114.3763]
[1680371753072,17.0,20.904,20.885,10.0]
[1680371753073,10.0,20.903,20.885,10.0]
[1680371753383,10.0,20.901,20.885,10.0]
[1680371753584,17.0,20.9,20.887,19.15]
[1680371753881,10.0,20.899,20.887,19.15]
[1680371754078,17.0,20.898,20.887,19.15]
[1680371755082,17.0,20.898,20.885,10.0]
[1680371755483,17.0,20.899,20.885,10.0]
[1680371756574,110.8235,20.9,20.885,10.0]
[1680371761678,110.8235,20.9,20.887,10.0]
[1680371765779,7.1871717,20.909,20.888,17.0]
[1680371765983,20.0,20.908,20.89,27.11]
[1680371766285,10.0,20.91,20.891,128.1056]
[1680371766588,10.0,20.91,20.892,20.0]
[1680371766784,10.0,20.91,20.893,27.0]
[1680371766980,10.0,20.91,20.894,20.0]
[1680371767190,10.0,20.91,20.895,10.0]
[1680371767691,127.9078,20.911,20.895,10.0]
[1680371767885,17.0,20.91,20.895,29.143]
[1680371768692,17.0,20.91,20.895,10.0]
[1680371768990,117.9078,20.911,20.895,10.0]
[1680371769195,117.9078,20.911,20.897,10.0]
[1680371771289,117.9078,20.911,20.898,17.0]
[1680371771484,117.9078,20.911,20.899,10.0]
[1680371780613,117.9078,20.911,20.899,4.5]
[1680371786615,117.9078,20.911,20.9,44.29]
[1680371787292,117.9078,20.911,20.901,10.0]
[1680371787495,113.1219,20.916,20.903,10.0]
[1680371788009,20.0,20.915,20.903,10.0]
[1680371809429,20.0,20.915,20.901,10.0]
[1680371809635,10.0,20.914,20.899,4.5]
[1680371810030,10.0,20.914,20.893,10.0]
[1680371810239,10.0,20.912,20.893,10.0]
[1680371816934,21.78,20.91,20.893,10.0]
[1680371826058,10.0,20.909,20.893,10.0]
[1680371826363,10.0,20.909,20.897,10.0]
[1680371834976,10.0,20.909,20.896,17.0]
[1680371837069,10.0,20.909,20.895,14.01946829]
[1680371837275,10.0,20.909,20.894,20.0]
[1680371837276,10.0,20.907,20.894,20.0]
[1680371837579,10.0,20.907,20.892,20.0]
[1680371837580,17.0,20.906,20.892,20.0]
[1680371837975,10.0,20.905,20.892,14.31797304]
[1680371838270,10.0,20.905,20.893,20.0]
[1680371838980,10.0,20.905,20.892,20.0]
[1680371846288,20.0,20.904,20.891,14.31975296]
[1680371846473,20.0,20.904,20.884,19.135885]
[1680371846474,21.72,20.9,20.884,19.135885]
[1680371846782,10.0,20.898,20.884,29.135885]
[1680371847685,10.0,20.898,20.885,129.26]
[1680371847874,21.72,20.9,20.885,129.26]
[1680371848065,21.72,20.9,20.887,10.0]
[1680371850787,21.72,20.9,20.889,10.0]
[1680371852491,10.0,20.903,20.887,10.0]
[1680371852685,10.0,20.903,20.889,10.0]
[1680371860290,29.141521,20.908,20.889,10.0]
[1680371860494,20.0,20.906,20.89,17.0]
[1680371860676,20.0,20.906,20.891,10.0]
[1680371860881,20.0,20.906,20.893,10.0]
[1680371861093,20.0,20.907,20.894,17.0]
[1680371862190,20.0,20.907,20.893,10.0]
[1680371862394,10.0,20.906,20.893,10.0]
[1680371862596,10.0,20.904,20.893,10.0]
[1680371868307,30.0,20.907,20.893,10.0]
[1680371869807,10.0,20.906,20.893,10.0]
[1680371870007,20.0,20.905,20.893,10.0]
[1680371873211,20.0,20.905,20.891,10.0]
[1680371873613,17.0,20.904,20.891,10.0]
[1680371873914,10.0,20.903,20.891,10.0]
[1680371878310,20.0,20.905,20.892,17.0]
[1680371878503,20.0,20.905,20.893,10.0]
[1680371880514,10.0,20.906,20.893,10.0]
[1680371880701,114.6104,20.909,20.894,37.0]
[1680371880900,19.13996,20.91,20.894,37.0]
[1680371881104,19.13996,20.91,20.894,149.7445]
[1680371881305,19.13996,20.91,20.895,10.0]
[1680371881497,19.13996,20.91,20.897,10.0]
[1680371881918,19.13996,20.91,20.899,10.0]
[1680371884909,10.0,20.909,20.897,10.0]
[1680371886618,10.0,20.91,20.897,10.0]
[1680371890007,10.0,20.914,20.897,10.0]
[1680371896327,10.0,20.914,20.899,10.0]
[1680371898126,10.0,20.915,20.899,10.0]
[1680371898326,10.0,20.917,20.901,10.0]
[1680371898831,127.996997,20.918,20.902,17.0]
[1680371899029,19.132697,20.918,20.904,19.134]
[1680371899228,19.132697,20.918,20.906,10.0]
[1680371899628,19.132697,20.918,20.908,10.0]
[1680371901729,111.1693,20.926,20.908,10.0]
[1680371906137,10.0,20.921,20.904,10.0]
[1680371906341,17.0,20.92,20.903,20.0]
[1680371907023,10.0,20.919,20.903,20.0]
[1680371907328,17.0,20.918,20.903,20.0]
[1680371907539,10.0,20.917,20.903,20.0]
[1680371907927,10.0,20.915,20.902,20.0]
[1680371911237,10.0,20.919,20.902,20.0]
[1680371911441,10.0,20.919,20.903,36.135]
[1680371911641,10.0,20.919,20.904,10.0]
[1680371911827,10.0,20.919,20.906,10.0]
[1680371928860,10.0,20.925,20.906,10.0]
[1680371929157,10.0,20.919,20.906,10.0]
[1680371938159,38.6,20.92,20.906,10.0]
[1680371938640,21.6,20.92,20.906,10.0]
[1680371938846,21.6,20.92,20.908,10.0]
[1680371942566,21.6,20.92,20.908,10.0]
[1680371942864,27.0,20.919,20.906,10.0]
[1680371952663,27.0,20.919,20.903,19.135]
[1680371952857,27.0,20.919,20.904,20.0]
[1680371953064,27.0,20.919,20.903,10.0]
[1680371953258,27.0,20.919,20.905,10.0]
[1680371953458,139.7043,20.919,20.905,10.0]
[1680371968179,139.7043,20.919,20.903,10.0]
[1680371968367,139.7043,20.919,9.5303,15.70057142]
[1680371968368,21.7,20.91,20.895,19.143]
[1680371968562,21.7,20.91,20.892,10.0]
[1680371968760,17.0,20.909,20.892,10.0]
[1680371969485,10.0,20.908,20.892,10.0]
[1680371969664,10.0,20.906,20.893,20.0]
[1680371969978,17.0,20.905,20.893,20.0]
[1680371970166,10.0,20.904,20.893,20.0]
[1680371971479,10.0,20.904,20.891,29.146]
[1680371971480,10.0,20.904,20.892,20.0]
[1680371972586,10.0,20.902,20.892,20.0]
[1680371973172,17.0,20.901,20.892,20.0]
[1680371973380,10.0,20.902,20.892,20.0]
[1680371977088,10.0,20.904,20.892,20.0]
[1680371977278,17.0,20.903,20.892,20.0]
[1680371977674,10.0,20.906,20.892,20.0]
[1680371977885,10.0,20.909,20.895,19.143]
[1680371978274,10.0,20.909,20.896,10.0]
[1680371990804,122.9343,20.91,20.896,10.0]
[1680371990999,112.9343,20.91,20.897,17.0]
[1680371991202,112.9343,20.91,20.898,10.0]
[1680372000727,112.9343,20.91,20.896,10.0]
[1680372000926,17.0,20.909,20.894,10.0]
[1680372001131,10.0,20.908,20.894,10.0]
[1680372001510,140.1943,20.91,20.894,10.0]
[1680372001717,26.3204317,20.918,20.894,10.0]
[1680372001924,26.3204317,20.918,20.897,19.141]
[1680372002134,10.0,20.917,20.898,10.0]
[1680372003326,116.5593,20.916,20.898,10.0]
[1680372009934,10.0,20.915,20.898,10.0]
[1680372015241,10.0,20.915,20.9,10.0]
[1680372016337,116.5593,20.916,20.901,17.0]
[1680372016924,116.5593,20.916,20.902,10.0]
[1680372017542,116.5593,20.916,20.903,37.0]
[1680372017836,116.5593,20.916,20.904,10.0]
[1680372021749,116.5593,20.916,20.903,20.0]
[1680372022043,10.0,20.915,20.903,20.0]
[1680372034854,17.0,20.914,20.903,20.0]
[1680372035056,17.0,20.914,20.902,20.0]
[1680372035457,10.0,20.915,20.902,20.0]
[1680372035657,17.0,20.914,20.903,10.0]
[1680372035859,17.0,20.914,20.904,20.0]
[1680372038867,10.0,20.915,20.904,20.0]
[1680372039058,10.0,20.919,20.904,20.0]
[1680372039259,10.0,20.917,20.904,20.0]
[1680372039452,17.0,20.916,20.904,20.0]
[1680372042666,10.0,20.919,20.904,20.0]
[1680372042866,17.0,20.918,20.904,20.0]
[1680372043365,17.0,20.918,20.905,10.0]
[1680372044870,10.0,20.919,20.905,10.0]
[1680372045574,10.0,20.919,20.905,9.5]
[1680372049378,27.26,20.92,20.905,9.5]
[1680372049578,27.26,20.92,20.907,10.0]
[1680372056993,7.1871717,20.925,20.907,10.0]
[1680372057189,27.0,20.921,20.907,10.0]
[1680372057391,10.0,20.919,20.904,20.0]
[1680372057779,17.0,20.918,20.904,20.0]
[1680372057994,10.0,20.917,20.904,20.0]
[1680372060191,17.0,20.916,20.904,20.0]
[1680372060389,10.0,20.915,20.903,20.0]
[1680372060595,17.0,20.914,20.903,20.0]
[1680372060979,17.0,20.914,20.902,20.0]
[1680372062800,17.0,20.914,20.903,10.0]
[1680372063099,10.0,20.917,20.904,20.0]
[1680372063294,17.0,20.916,20.904,20.0]
[1680372065085,10.0,20.919,20.904,20.0]
[1680372065281,10.0,20.919,20.906,10.0]
[1680372066998,40.68779042,20.927,20.906,10.0]
[1680372067795,17.0,20.919,20.904,20.0]
[1680372068386,10.0,20.918,20.904,20.0]
[1680372068585,17.0,20.917,20.904,20.0]
[1680372076105,10.0,20.916,20.902,20.0]
[1680372076295,17.0,20.915,20.902,20.0]
[1680372076501,10.0,20.914,20.902,20.0]
[1680372076808,17.0,20.913,20.902,20.0]
[1680372077011,10.0,20.912,20.902,20.0]
[1680372081302,10.0,20.914,20.902,20.0]
[1680372083014,10.0,20.916,20.902,20.0]
[1680372083217,17.0,20.915,20.902,20.0]
[1680372085016,10.0,20.914,20.902,20.0]
[1680372085214,17.0,20.913,20.902,20.0]
[1680372085414,10.0,20.912,20.902,20.0]
[1680372087815,10.0,20.914,20.902,20.0]
[1680372088023,115.485,20.933,20.903,10.0]
[1680372088208,10.0,20.92,20.904,37.0]
[1680372088413,54.49,20.93,20.907,19.131]
[1680372089122,54.49,20.93,20.908,10.0]
[1680372090225,17.0,20.921,20.908,10.0]
[1680372092732,19.12467,20.927,20.91,27.26]
[1680372092922,19.12467,20.927,20.911,20.0]
[1680372093125,19.12467,20.927,20.912,10.0]
[1680372093516,19.12467,20.927,20.913,20.0]
[1680372094116,17.0,20.926,20.914,10.0]
[1680372096332,17.0,20.926,20.913,20.0]
[1680372096739,10.0,20.925,20.913,20.0]
[1680372102835,10.0,20.929,20.914,10.0]
[1680372103348,17.0,20.928,20.914,10.0]
[1680372103539,10.0,20.927,20.914,10.0]
[1680372105242,10.0,20.929,20.914,10.0]
[1680372105444,10.0,20.929,20.915,17.0]
[1680372105628,10.0,20.929,20.916,10.0]
[1680372118663,10.0,20.929,20.915,17.0]
[1680372120353,10.0,20.929,20.913,30.0]
[1680372120559,17.0,20.928,20.913,20.0]
[1680372120749,10.0,20.927,20.913,20.0]
[1680372120960,17.0,20.926,20.913,20.0]
[1680372121172,17.0,20.926,20.911,119.1941]
[1680372121362,20.0,20.925,20.911,119.1941]
[1680372121564,17.0,20.924,20.911,119.1941]
[1680372121873,10.0,20.923,20.911,119.1941]
[1680372122071,17.0,20.922,20.911,119.1941]
[1680372122369,10.0,20.921,20.911,119.1941]
[1680372125956,17.0,20.922,20.911,119.1941]
[1680372126150,10.0,20.923,20.911,119.1941]
[1680372126356,20.0,20.925,20.911,119.1941]
[1680372126574,20.0,20.926,20.912,10.0]
[1680372126773,17.0,20.925,20.912,10.0]
[1680372129173,10.0,20.924,20.912,10.0]
[1680372129375,10.0,20.924,20.911,119.1941]
[1680372131574,10.0,20.924,20.912,10.0]
[1680372133175,27.0,20.925,20.912,10.0]
[1680372134667,20.0,20.926,20.912,10.0]
[1680372134869,17.0,20.925,20.912,10.0]
[1680372140985,17.0,20.925,20.908,10.0]
[1680372141570,10.0,20.924,20.908,10.0]
[1680372141877,17.0,20.923,20.908,10.0]
[1680372142077,10.0,20.922,20.908,10.0]
[1680372142286,119.4587,20.922,20.908,10.0]
[1680372159900,109.4587,20.922,20.908,10.0]
[1680372160101,109.4587,20.922,20.909,17.0]
[1680372160288,109.4587,20.922,20.91,31.77]
[1680372161288,109.4587,20.922,20.912,10.0]
[1680372161588,109.4587,20.922,20.914,10.0]
[1680372173512,109.4587,20.922,20.912,10.0]
[1680372173823,109.4587,20.922,20.913,17.0]
[1680372184422,109.4587,20.922,20.913,17.0]
[1680372188922,20.0,20.926,20.914,10.0]
[1680372189124,54.12,20.94,20.915,40.906]
[1680372189125,50.817,20.94,20.915,40.906]
[1680372189309,26.94,20.94,20.92,27.2]
[1680372189511,26.94,20.94,20.921,37.0]
[1680372189910,10.0,20.939,20.922,10.0]
[1680372190126,10.0,20.939,20.923,17.0]
[1680372190328,10.0,20.939,20.924,20.0]
[1680372190623,10.0,20.939,20.926,10.0]
[1680372192021,115.485,20.933,20.926,10.0]
[1680372192216,115.485,20.933,20.924,20.0]
[1680372193125,10.0,20.932,20.899,143.7]
[1680372193326,10.0,20.932,20.921,20.0]
[1680372194719,115.485,20.933,20.921,20.0]
[1680372196624,115.485,20.933,20.922,10.0]
[1680372196815,115.485,20.933,20.923,20.0]
[1680372198139,115.485,20.933,20.921,20.0]
[1680372199834,115.485,20.933,20.922,10.0]
[1680372200021,115.485,20.933,20.923,20.0]
[1680372201334,10.0,20.931,20.918,10.0]
[1680372208345,44.2,20.93,20.913,10.0]
[1680372208635,44.2,20.93,20.912,24.52744965]
[1680372208636,44.2,20.93,20.914,20.0]
[1680372208827,10.0,20.929,20.914,20.0]
[1680372209030,17.0,20.928,20.913,20.0]
[1680372209227,10.0,20.927,20.913,20.0]
[1680372209431,17.0,20.926,20.913,20.0]
[1680372209624,17.0,20.926,20.914,10.0]
[1680372213143,27.2,20.93,20.914,10.0]
[1680372213351,108.9677,20.932,20.915,17.0]
[1680372213729,108.9677,20.932,20.916,10.0]
[1680372214028,108.9677,20.932,20.918,10.0]
[1680372218341,108.9677,20.932,20.92,10.0]
[1680372218738,10.0,20.931,20.92,10.0]
[1680372219641,10.0,20.931,20.916,10.0]
[1680372227454,10.0,20.929,20.914,10.0]
[1680372227656,17.0,20.928,20.914,10.0]
[1680372227959,10.0,20.927,20.914,10.0]
[1680372228554,10.0,20.927,20.913,30.0]
[1680372228758,17.0,20.926,20.913,20.0]
[1680372229049,10.0,20.925,20.914,20.0]
[1680372229241,17.0,20.924,20.912,20.0]
[1680372229441,10.0,20.923,20.912,20.0]
[1680372231542,17.0,20.922,20.911,20.0]
[1680372231743,17.0,20.922,20.911,10.0]
[1680372231955,17.0,20.922,20.912,20.0]
[1680372235559,17.0,20.922,20.905,45.9422579]
[1680372235861,27.2,20.92,20.9,117.6639]
[1680372236048,10.0,20.919,20.904,10.0]
[1680372236247,17.0,20.918,20.904,10.0]
[1680372236449,10.0,20.917,20.904,10.0]
[1680372237363,10.0,20.915,20.903,20.0]
[1680372237660,17.0,20.916,20.903,20.0]
[1680372237661,17.0,20.916,20.904,10.0]
[1680372237856,17.0,20.918,20.904,10.0]
[1680372238057,10.0,20.917,20.904,10.0]
[1680372238247,17.0,20.916,20.904,10.0]
[1680372242861,10.0,20.919,20.904,10.0]
[1680372243062,17.0,20.918,20.904,10.0]
[1680372245367,10.0,20.917,20.904,10.0]
[1680372245562,17.0,20.916,20.904,10.0]
[1680372246771,10.0,20.919,20.904,10.0]
[1680372246957,17.0,20.918,20.904,10.0]
[1680372250251,10.0,20.919,20.904,10.0]
[1680372250457,10.0,20.927,20.904,33.918]
[1680372250959,10.0,20.918,20.904,33.918]
[1680372251160,17.0,20.917,20.904,33.918]
[1680372252259,17.0,20.917,20.903,20.0]
[1680372252872,10.0,20.916,20.903,20.0]
[1680372253075,17.0,20.915,20.902,20.0]
[1680372253257,10.0,20.914,20.902,30.0]
[1680372260179,17.0,20.915,20.902,30.0]
[1680372262688,17.0,20.915,20.902,20.0]
[1680372262888,10.0,20.914,20.902,20.0]
[1680372263181,17.0,20.913,20.902,20.0]
[1680372263584,10.0,20.914,20.902,20.0]
[1680372263775,17.0,20.913,20.902,20.0]
[1680372265697,17.0,20.913,20.902,30.0]
[1680372266595,27.2,20.92,20.903,23.919]
[1680372266769,13.99819365,20.928,20.905,10.0]
[1680372266975,21.17035253,20.928,20.905,10.0]
[1680372267994,10.0,20.919,20.905,10.0]
[1680372268172,17.0,20.918,20.905,10.0]
[1680372283289,10.0,20.92,20.905,10.0]
[1680372283689,21.17035253,20.928,20.905,10.0]
[1680372283885,19.128431,20.923,20.907,10.0]
[1680372284091,19.128431,20.923,20.908,17.0]
[1680372284496,19.128431,20.923,20.909,20.0]
[1680372284703,19.128431,20.923,20.91,67.931]
[1680372284902,19.128431,20.923,20.912,10.0]
[1680372285106,19.128431,20.923,20.913,37.0]
[1680372285408,10.0,20.932,20.914,17.17215888]
[1680372285709,10.0,20.932,20.916,10.0]
[1680372286397,17.0,20.931,20.916,10.0]
[1680372286593,10.0,20.93,20.916,10.0]
[1680372290200,10.0,20.932,20.916,10.0]
[1680372290407,125.485,20.933,20.917,17.0]
[1680372290608,125.485,20.933,20.918,10.0]
[1680372291208,115.485,20.933,20.918,10.0]
[1680372291800,27.0,20.932,20.918,10.0]
[1680372292702,27.0,20.932,20.916,10.0]
[1680372295313,26.5,20.932,20.916,10.0]
[1680372296214,26.0,20.932,20.916,10.0]
[1680372297508,115.485,20.933,20.916,10.0]
[1680372297710,115.485,20.933,20.918,10.0]
[1680372299423,10.0,20.931,20.918,10.0]
[1680372299618,17.0,20.93,20.918,10.0]
[1680372299803,10.0,20.929,20.918,10.0]
[1680372300823,17.0,20.93,20.918,10.0]
[1680372301829,16.5,20.93,20.918,10.0]
[1680372302424,10.0,20.931,20.918,10.0]
[1680372303911,17.0,20.93,20.918,10.0]
[1680372311232,115.485,20.933,20.918,10.0]
[1680372323237,115.485,20.933,20.919,17.0]
[1680372323434,115.485,20.933,20.92,10.0]
[1680372325239,115.485,20.933,20.918,10.0]
[1680372325450,10.0,20.931,20.906,23.915]
[1680372325643,17.0,20.93,20.91,164.85473192]
[1680372325843,10.0,20.929,20.91,164.85473192]
[1680372326140,17.0,20.928,20.91,164.85473192]
[1680372326538,17.0,20.928,20.915,24.2321766]
[1680372328348,10.0,20.929,20.915,24.2321766]
[1680372328732,10.0,20.931,20.915,24.2321766]
[1680372328955,17.0,20.93,20.915,24.2321766]
[1680372333849,10.0,20.932,20.917,10.0]
[1680372334047,17.0,20.931,20.917,10.0]
[1680372339851,125.485,20.933,20.917,10.0]
[1680372339852,115.485,20.933,20.917,10.0]
[1680372340149,115.485,20.933,20.918,17.0]
[1680372340348,115.485,20.933,20.919,10.0]
[1680372340552,115.485,20.933,20.921,10.0]
[1680372340943,115.485,20.933,20.922,17.0]
[1680372341149,115.485,20.933,20.923,10.0]
[1680372341345,115.485,20.933,20.925,10.0]
[1680372351271,115.485,20.933,20.926,17.0]
[1680372351451,115.485,20.933,20.927,10.0]
[1680372360368,114.2955,20.94,20.927,10.0]
[1680372360570,114.2955,20.94,20.928,17.0]
[1680372360961,114.2955,20.94,20.929,10.0]
[1680372361279,114.2955,20.94,20.93,17.0]
[1680372361767,114.2955,20.94,20.931,10.0]
[1680372369286,114.2955,20.94,20.933,10.0]
[1680372369586,114.2955,20.94,20.934,20.0]
[1680372369793,19.111073,20.942,20.934,20.0]
[1680372371380,164.361,20.95,20.934,20.0]
[1680372375371,164.361,20.95,20.931,10.0]
[1680372376576,20.0,20.949,20.931,10.0]
[1680372400906,10.0,20.948,20.931,10.0]
[1680372402504,30.0,20.949,20.931,10.0]
[1680372402505,20.0,20.949,20.931,10.0]
[1680372402705,20.0,20.949,20.932,17.0]
[1680372403007,20.0,20.949,20.933,30.0]
[1680372403206,20.0,20.949,20.935,10.0]
[1680372403395,20.0,20.949,20.937,10.0]
[1680372403790,30.0,20.949,20.937,10.0]
[1680372404212,10.0,20.949,20.937,10.0]
[1680372404411,131.921,20.95,20.937,10.0]
[1680372405113,131.921,20.95,20.938,17.0]
[1680372405406,131.921,20.95,20.939,10.0]
[1680372405716,131.921,20.95,20.937,10.0]
[1680372405905,10.0,20.949,20.937,10.0]
[1680372408618,10.0,20.949,20.938,17.0]
[1680372408918,131.921,20.95,20.938,17.0]